[Event "FIDE Zonal 2.5 Open 2019"]
[Site "Montevideo"]
[Date "2019.04.16"]
[Round "5.22"]
[White "Rodriguez Farias, Eduardo"]
[Black "Fein, Jorge"]
[Result "1-0"]
[ECO "C77"]
[WhiteElo "1898"]
[BlackElo "1648"]
[Annotator "NA"]
[PlyCount "77"]
[EventDate "2019.04.13"]
[EventType "swiss"]
[EventCountry "URU"]
[SourceTitle "playchess.com"]
[Source "ChessBase"]
[SourceQuality "1"]
[TimeControl "40/5400+30:1800+30"]

1. e4 {[%emt 0:00:53]} e5 {[%emt 0:00:00]} 2. Nf3 {[%emt 0:00:51]} Nc6 {[%emt 0:00:03]} 3. Bb5 {[%emt 0:00:06]} a6 {[%emt 0:00:26]} 4. Ba4 {[%emt 0:00:10]} Nf6 {[%emt 0:05:26]} 5. d3 {[%emt 0:00:29]} b5 {[%emt 0:03:23]} 6. Bb3 {[%emt 0:00:29]} h6 {[%emt 0:02:24]} 7. O-O {[%emt 0:01:17]} Be7 {[%emt 0:02:56]} 8. Re1 {[%emt 0:00:37]} O-O {[%emt 0:00:48]} 9. c3 {[%emt 0:00:30]} d6 {[%emt 0:01:06]} 10. h3 {[%emt 0:00:58]} Na5 {[%emt 0:04:29]} 11. Bc2 {[%emt 0:00:15]} c5 {[%emt 0:00:10]} 12. Nbd2 {[%emt 0:00:16]} Be6 {[%emt 0:01:11]} 13. Nf1 {[%emt 0:00:20]} Nc6 {[%emt 0:03:39]} 14. Ng3 {[%emt 0:00:27]} Qc8 {[%emt 0:08:19]} 15. Kh2 {[%emt 0:11:06]} Bd8 {[%emt 0:03:54]} 16. Nh4 {[%emt 0:01:15]} Ng4+ {[%emt 0:04:58]} 17. hxg4 {[%emt 0:01:23]} Bxh4 {[%emt 0:01:02]} 18. Nf5 {[%emt 0:02:47]} Bxf5 {[%emt 0:03:07]} 19. gxf5 {[%emt 0:00:11]} Qd8 {[%emt 0:07:07]} 20. g3 {[%emt 0:03:25]} Bg5 {[%emt 0:02:42]} 21. f4 {[%emt 0:00:12]} exf4 {[%emt 0:03:00]} 22. gxf4 {[%emt 0:00:12]} Bf6 {[%emt 0:00:58]} 23. Qg4 {[%emt 0:01:32]} Kh8 {[%emt 0:04:39]} 24. Be3 {[%emt 0:01:03]} Rb8 {[%emt 0:00:40]} 25. Rg1 {[%emt 0:10:19]} Rg8 {[%emt 0:03:49]} 26. Rg2 {[%emt 0:27:21]} b4 {[%emt 0:06:56]} 27. Rh1 {[%emt 0:00:12]} Qf8 {[%emt 0:03:07]} 28. Ba4 {[%emt 0:07:01]} Nd8 {[%emt 0:03:18]} 29. d4 {[%emt 0:01:03]} bxc3 {[%emt 0:01:03]} 30. bxc3 {[%emt 0:00:14]} cxd4 {[%emt 0:01:33]} 31. cxd4 {[%emt 0:00:25]} Rb4 {[%emt 0:00:51]} 32. Qd1 {[%emt 0:00:14]} Rb8 {[%emt 0:02:58]} 33. e5 {[%emt 0:01:26]} dxe5 {[%emt 0:00:29]} 34. fxe5 {[%emt 0:00:10]} Be7 {[%emt 0:01:07]} 35. Kg1 {[%emt 0:00:55]} f6 {[%emt 0:03:37]} 36. Bb3 {[%emt 0:03:04]} Nf7 {[%emt 0:00:13]} 37. Bxf7 {[%emt 0:00:33]} Qxf7 {[%emt 0:00:22]} 38. Bxh6 {[%emt 0:00:11]} gxh6 {[%emt 0:03:13]} 39. Rxh6+ {[%emt 0:00:15]} 1-0

[Event "FIDE Zonal 2.5 Open 2019"]
[Site "Montevideo"]
[Date "2019.04.16"]
[Round "5.23"]
[White "Romero, Robert"]
[Black "Pinero, Ismael"]
[Result "0-1"]
[ECO "B34"]
[WhiteElo "1599"]
[BlackElo "1872"]
[Annotator "NA"]
[PlyCount "80"]
[EventDate "2019.04.13"]
[EventType "swiss"]
[EventCountry "URU"]
[SourceTitle "playchess.com"]
[Source "ChessBase"]
[SourceQuality "1"]
[TimeControl "40/5400+30:1800+30"]

1. e4 {[%emt 0:00:00]} c5 {[%emt 0:00:41]} 2. Nf3 {[%emt 0:00:00]} Nc6 {[%emt 0:00:10]} 3. d4 {[%emt 0:00:00]} cxd4 {[%emt 0:00:04]} 4. Nxd4 {[%emt 0:00:02]} Nf6 {[%emt 0:00:03]} 5. Nc3 {[%emt 0:00:49]} e5 {[%emt 0:00:35]} 6. Nxc6 {[%emt 0:00:59]} bxc6 {[%emt 0:00:10]} 7. Be2 {[%emt 0:02:21]} Bb4 {[%emt 0:02:38]} 8. Bg5 {[%emt 0:05:13]} Bxc3+ {[%emt 0:02:34]} 9. bxc3 {[%emt 0:00:20]} Qa5 {[%emt 0:00:17]} 10. Bxf6 {[%emt 0:02:13]} Qxc3+ {[%emt 0:00:19]} 11. Kf1 {[%emt 0:00:14]} gxf6 {[%emt 0:00:08]} 12. Rb1 {[%emt 0:00:54]} Qd4 {[%emt 0:03:36]} 13. Bd3 {[%emt 0:02:42]} h5 {[%emt 0:02:48]} 14. Qf3 {[%emt 0:02:19]} Ke7 {[%emt 0:00:19]} 15. Qe2 {[%emt 0:15:13]} d6 {[%emt 0:01:12]} 16. Qe1 {[%emt 0:05:26]} Bd7 {[%emt 0:01:14]} 17. Rb4 {[%emt 0:02:26]} Qc5 {[%emt 0:00:15]} 18. Qb1 {[%emt 0:06:58]} a5 {[%emt 0:01:50]} 19. Rb7 {[%emt 0:03:08]} Ra7 {[%emt 0:00:29]} 20. Rb6 {[%emt 0:08:05]} h4 {[%emt 0:02:36]} 21. h3 {[%emt 0:03:04]} f5 {[%emt 0:03:25]} 22. exf5 {[%emt 0:10:21]} d5 {[%emt 0:00:11]} 23. c4 {[%emt 0:13:16]} e4 {[%emt 0:02:14]} 24. Qb2 {[%emt 0:02:47]} f6 {[%emt 0:03:24]} 25. Be2 {[%emt 0:04:08]} d4 {[%emt 0:02:38]} 26. g4 {[%emt 0:00:06]} hxg3 {[%emt 0:14:45]} 27. fxg3 {[%emt 0:03:01]} Qxf5+ {[%emt 0:00:43]} 28. Ke1 {[%emt 0:00:28]} c5 {[%emt 0:07:24]} 29. Rf1 {[%emt 0:00:22]} Qe5 {[%emt 0:01:18]} 30. Rbxf6 {[%emt 0:01:47]} Qxg3+ {[%emt 0:01:06]} 31. Kd1 {[%emt 0:00:08]} Rb8 {[%emt 0:02:10]} 32. Rf7+ {[%emt 0:02:04]} Kd8 {[%emt 0:00:12]} 33. Rf8+ {[%emt 0:02:10]} Be8 {[%emt 0:00:04]} 34. Qd2 {[%emt 0:01:28]} Rb1+ {[%emt 0:04:38]} 35. Kc2 {[%emt 0:00:05]} Rxf1 {[%emt 0:00:05]} 36. Bxf1 {[%emt 0:00:49]} d3+ {[%emt 0:01:31]} 37. Kd1 {[%emt 0:00:43]} Qg7 {[%emt 0:00:26]} 38. Rf5 {[%emt 0:01:30]} Qa1+ {[%emt 0:00:35]} 39. Qc1 {[%emt 0:00:07]} Ba4+ {[%emt 0:00:27]} 40. Kd2 {[%emt 0:00:04]} e3+ {[%emt 0:00:12]} 0-1

[Event "FIDE Zonal 2.5 Open 2019"]
[Site "Montevideo"]
[Date "2019.04.16"]
[Round "5.24"]
[White "Zaruski, Julio"]
[Black "Ramirez Dominguez, Agustin"]
[Result "1/2-1/2"]
[ECO "D71"]
[WhiteElo "1842"]
[BlackElo "1907"]
[Annotator "NA"]
[PlyCount "98"]
[EventDate "2019.04.13"]
[EventType "swiss"]
[EventCountry "URU"]
[SourceTitle "playchess.com"]
[Source "ChessBase"]
[SourceQuality "1"]
[TimeControl "40/5400+30:1800+30"]

1. d4 {[%emt 0:00:00]} Nf6 {[%emt 0:00:00]} 2. c4 {[%emt 0:00:27]} g6 {[%emt 0:00:00]} 3. g3 {[%emt 0:00:14]} Bg7 {[%emt 0:00:31]} 4. Bg2 {[%emt 0:00:32]} O-O {[%emt 0:01:41]} 5. Nf3 {[%emt 0:00:04]} c6 {[%emt 0:00:16]} 6. O-O {[%emt 0:00:17]} d5 {[%emt 0:00:43]} 7. Qc2 {[%emt 0:09:57]} Bf5 {[%emt 0:04:08]} 8. Qb3 {[%emt 0:06:10]} Qb6 9. Nbd2 {[%emt 0:00:23]} Nbd7 {[%emt 0:04:04]} 10. c5 {[%emt 0:00:30]} Qc7 {[%emt 0:03:21]} 11. Nh4 {[%emt 0:05:04]} Be4 {[%emt 0:07:03]} 12. Nxe4 {[%emt 0:00:45]} Nxe4 13. Bf4 {[%emt 0:04:14]} e5 {[%emt 0:02:13]} 14. dxe5 {[%emt 0:00:15]} Ndxc5 {[%emt 0:00:55]} 15. Qe3 {[%emt 0:04:24]} Bxe5 {[%emt 0:03:35]} 16. Bxe5 {[%emt 0:00:39]} Qxe5 {[%emt 0:00:26]} 17. f3 {[%emt 0:02:00]} d4 {[%emt 0:01:06]} 18. Qh6 {[%emt 0:13:55]} Qg5 {[%emt 0:04:13]} 19. Qxg5 {[%emt 0:00:09]} Nxg5 {[%emt 0:00:01]} 20. Rac1 {[%emt 0:01:11]} Nge6 {[%emt 0:02:51]} 21. f4 {[%emt 0:01:25]} f5 {[%emt 0:01:28]} 22. Nf3 {[%emt 0:00:42]} Rad8 {[%emt 0:01:56]} 23. Ne5 {[%emt 0:00:22]} Nd7 {[%emt 0:01:26]} 24. Nd3 {[%emt 0:00:47]} Nf6 {[%emt 0:01:11]} 25. Nc5 {[%emt 0:01:37]} Nxc5 {[%emt 0:01:18]} 26. Rxc5 {[%emt 0:00:08]} Rfe8 {[%emt 0:00:08]} 27. Ra5 {[%emt 0:04:38]} Rxe2 {[%emt 0:02:05]} 28. Rxa7 {[%emt 0:00:27]} Rxb2 {[%emt 0:00:32]} 29. Bf3 {[%emt 0:02:18]} d3 {[%emt 0:00:33]} 30. Bd1 {[%emt 0:00:05]} d2 {[%emt 0:00:54]} 31. Ra3 {[%emt 0:00:55]} Re8 {[%emt 0:00:47]} 32. Rd3 {[%emt 0:00:25]} Kg7 {[%emt 0:01:17]} 33. Kf2 {[%emt 0:01:02]} Ne4+ {[%emt 0:01:00]} 34. Kf3 {[%emt 0:00:23]} Nc5 {[%emt 0:00:38]} 35. Re3 {[%emt 0:01:27]} Rxe3+ {[%emt 0:01:21]} 36. Kxe3 {[%emt 0:00:08]} Rxa2 {[%emt 0:00:09]} 37. Kd4 {[%emt 0:00:15]} Ne4 {[%emt 0:00:19]} 38. g4 Kf6 39. g5+ {[%emt 0:01:25]} Ke7 {[%emt 0:02:13]} 40. Bf3 {[%emt 0:00:59]} Ra4+ {[%emt 0:01:31]} 41. Kd3 {[%emt 0:31:08]} Ra3+ {[%emt 0:30:13]} 42. Ke2 {[%emt 0:00:49]} Rc3 {[%emt 0:03:20]} 43. Bxe4 {[%emt 0:01:21]} Rc1 {[%emt 0:00:48]} 44. Bg2 {[%emt 0:00:09]} Rxf1 45. Bxf1 {[%emt 0:00:09]} Kd6 {[%emt 0:02:32]} 46. Kxd2 {[%emt 0:00:11]} b5 {[%emt 0:00:11]} 47. Bd3 {[%emt 0:04:06]} Kd5 {[%emt 0:00:33]} 48. h4 {[%emt 0:02:30]} c5 {[%emt 0:00:53]} 49. Ke3 {[%emt 0:00:30]} c4 {[%emt 0:00:30]} 1/2-1/2

[Event "FIDE Zonal 2.5 Open 2019"]
[Site "Montevideo"]
[Date "2019.04.16"]
[Round "5.25"]
[White "Prieto Perez, Rodrigo"]
[Black "Campora, Edgardo"]
[Result "0-1"]
[ECO "B02"]
[WhiteElo "2037"]
[BlackElo "1705"]
[Annotator "NA"]
[PlyCount "34"]
[EventDate "2019.04.13"]
[EventType "swiss"]
[EventCountry "URU"]
[SourceTitle "playchess.com"]
[Source "ChessBase"]
[SourceQuality "1"]
[TimeControl "40/5400+30:1800+30"]

1. e4 {[%emt 0:00:00]} Nf6 {[%emt 0:05:10]} 2. e5 {[%emt 0:00:34]} Nd5 {[%emt 0:00:06]} 3. Bc4 {[%emt 0:01:54]} Nb6 {[%emt 0:00:05]} 4. Bb3 {[%emt 0:00:13]} Nc6 {[%emt 0:00:16]} 5. Nf3 {[%emt 0:00:32]} d6 {[%emt 0:00:21]} 6. d4 {[%emt 0:03:11]} Bg4 {[%emt 0:00:20]} 7. exd6 {[%emt 0:04:21]} cxd6 {[%emt 0:06:37]} 8. Bxf7+ {[%emt 0:04:24]} Kd7 {[%emt 0:14:04]} 9. d5 {[%emt 0:09:29]} Bxf3 {[%emt 0:17:43]} 10. Qxf3 {[%emt 0:03:20]} Ne5 {[%emt 0:00:06]} 11. Be6+ {[%emt 0:08:30]} Kc7 {[%emt 0:00:04]} 12. Qc3+ {[%emt 0:01:26]} Kb8 {[%emt 0:00:06]} 13. Bf4 {[%emt 0:05:22]} Ng6 {[%emt 0:00:13]} 14. Be3 {[%emt 0:02:56]} Na4 {[%emt 0:05:18]} 15. Qb4 {[%emt 0:04:42]} Nb6 {[%emt 0:05:46]} 16. Nd2 {[%emt 0:06:32]} Ne5 {[%emt 0:00:33]} 17. c4 {[%emt 0:01:41]} Nd3+ 0-1

[Event "FIDE Zonal 2.5 Open 2019"]
[Site "Montevideo"]
[Date "2019.04.16"]
[Round "5.26"]
[White "Manteiga, Franco"]
[Black "Lanaro, Emilio"]
[Result "1/2-1/2"]
[ECO "E97"]
[WhiteElo "1684"]
[BlackElo "1694"]
[Annotator "NA"]
[PlyCount "55"]
[EventDate "2019.04.13"]
[EventType "swiss"]
[EventCountry "URU"]
[SourceTitle "playchess.com"]
[Source "ChessBase"]
[SourceQuality "1"]
[TimeControl "40/5400+30:1800+30"]

1. d4 {[%emt 0:00:00]} Nf6 2. c4 {[%emt 0:00:00]} g6 {[%emt 0:00:00]} 3. Nc3 Bg7 {[%emt 0:00:00]} 4. e4 {[%emt 0:00:05]} d6 {[%emt 0:00:07]} 5. Nf3 {[%emt 0:00:37]} O-O {[%emt 0:00:15]} 6. Be2 {[%emt 0:00:06]} e5 {[%emt 0:00:24]} 7. O-O {[%emt 0:00:09]} Nc6 {[%emt 0:00:17]} 8. d5 {[%emt 0:00:05]} Ne7 {[%emt 0:00:09]} 9. b4 {[%emt 0:00:00]} Nh5 {[%emt 0:00:32]} 10. Re1 f5 11. Ng5 {[%emt 0:08:58]} Nf4 {[%emt 0:01:52]} 12. Bxf4 {[%emt 0:00:45]} exf4 {[%emt 0:00:07]} 13. Rc1 {[%emt 0:00:05]} h6 {[%emt 0:05:29]} 14. Ne6 {[%emt 0:05:34]} Bxe6 {[%emt 0:00:20]} 15. dxe6 Bxc3 {[%emt 0:16:05]} 16. Rxc3 {[%emt 0:00:15]} fxe4 {[%emt 0:15:35]} 17. Bg4 {[%emt 0:23:52]} a5 18. b5 {[%emt 0:22:58]} d5 {[%emt 0:13:10]} 19. cxd5 {[%emt 0:17:23]} Nxd5 20. e7 {[%emt 0:02:52]} Nxe7 {[%emt 0:08:30]} 21. Qxd8 {[%emt 0:03:55]} Raxd8 {[%emt 0:08:47]} 22. Rxc7 {[%emt 0:02:27]} Nf5 23. Bxf5 {[%emt 0:00:36]} Rxf5 {[%emt 0:01:18]} 24. Rxb7 {[%emt 0:04:00]} Rf7 {[%emt 0:18:27]} 25. Rb6 {[%emt 0:03:37]} Rd2 26. Rxg6+ Kh7 27. Re6 Rxa2 28. R6xe4 1/2-1/2

[Event "FIDE Zonal 2.5 Open 2019"]
[Site "Montevideo"]
[Date "2019.04.16"]
[Round "5.27"]
[White "Barreto Filho, Carlos Alberto"]
[Black "Palacio, Enzo"]
[Result "1-0"]
[ECO "B23"]
[WhiteElo "2293"]
[BlackElo "1745"]
[Annotator "NA"]
[PlyCount "149"]
[EventDate "2019.04.13"]
[EventType "swiss"]
[EventCountry "URU"]
[SourceTitle "playchess.com"]
[Source "ChessBase"]
[SourceQuality "1"]
[TimeControl "40/5400+30:1800+30"]

1. e4 {[%emt 0:00:00]} c5 {[%emt 0:00:00]} 2. Nc3 {[%emt 0:00:00]} g6 {[%emt 0:00:00]} 3. f4 {[%emt 0:00:15]} Bg7 {[%emt 0:00:00]} 4. Nf3 {[%emt 0:00:16]} Nc6 {[%emt 0:00:00]} 5. Bb5 {[%emt 0:00:14]} Qb6 {[%emt 0:00:43]} 6. Nd5 {[%emt 0:03:34]} Qd8 {[%emt 0:00:41]} 7. Bxc6 {[%emt 0:01:19]} bxc6 {[%emt 0:00:22]} 8. Ne3 {[%emt 0:01:43]} Ba6 {[%emt 0:02:45]} 9. d3 {[%emt 0:00:51]} e6 {[%emt 0:01:53]} 10. O-O {[%emt 0:00:42]} Ne7 {[%emt 0:00:10]} 11. Rb1 {[%emt 0:01:50]} O-O {[%emt 0:00:14]} 12. b3 {[%emt 0:00:40]} d5 {[%emt 0:00:36]} 13. e5 {[%emt 0:06:37]} Rb8 {[%emt 0:02:23]} 14. c4 {[%emt 0:02:05]} Nc8 {[%emt 0:16:37]} 15. Qe1 {[%emt 0:00:51]} Ne7 {[%emt 0:10:29]} 16. Bd2 Qd7 {[%emt 0:02:51]} 17. Qh4 {[%emt 0:05:55]} Nf5 {[%emt 0:02:28]} 18. Nxf5 {[%emt 0:00:24]} exf5 {[%emt 0:00:03]} 19. Be3 {[%emt 0:03:42]} d4 {[%emt 0:00:58]} 20. Bd2 {[%emt 0:00:16]} Rbe8 {[%emt 0:00:43]} 21. Ng5 {[%emt 0:02:20]} h6 {[%emt 0:00:21]} 22. Nf3 {[%emt 0:00:16]} Qc7 {[%emt 0:07:38]} 23. Rbe1 {[%emt 0:00:58]} Bc8 {[%emt 0:00:28]} 24. Re2 {[%emt 0:03:43]} Rd8 {[%emt 0:01:18]} 25. Qe1 {[%emt 0:01:07]} Rde8 {[%emt 0:01:55]} 26. Qc1 {[%emt 0:01:38]} Be6 {[%emt 0:00:37]} 27. Qa3 {[%emt 0:01:02]} Qb6 {[%emt 0:03:57]} 28. Ba5 {[%emt 0:01:39]} Qa6 {[%emt 0:00:18]} 29. Bb4 {[%emt 0:00:14]} Qxa3 {[%emt 0:01:54]} 30. Bxa3 {[%emt 0:00:07]} Ra8 {[%emt 0:00:31]} 31. Bxc5 {[%emt 0:00:11]} Rfd8 {[%emt 0:00:02]} 32. Nxd4 {[%emt 0:01:06]} a5 {[%emt 0:01:00]} 33. Re3 {[%emt 0:01:22]} Ra6 {[%emt 0:01:09]} 34. Nc2 {[%emt 0:03:23]} g5 {[%emt 0:00:38]} 35. fxg5 {[%emt 0:00:51]} hxg5 {[%emt 0:00:03]} 36. Be7 {[%emt 0:00:19]} Rd7 {[%emt 0:01:41]} 37. Bxg5 {[%emt 0:00:08]} a4 {[%emt 0:00:09]} 38. b4 {[%emt 0:02:39]} a3 {[%emt 0:00:17]} 39. Rg3 {[%emt 0:00:34]} Kf8 40. Bf6 {[%emt 0:05:02]} Bxf6 {[%emt 0:01:34]} 41. exf6 {[%emt 0:33:59]} Rd6 {[%emt 0:33:43]} 42. Rh3 {[%emt 0:01:48]} Ke8 43. Rf4 {[%emt 0:03:27]} Ra4 {[%emt 0:02:17]} 44. Re3 {[%emt 0:01:43]} Kd7 {[%emt 0:00:31]} 45. c5 {[%emt 0:00:59]} Rd5 {[%emt 0:01:33]} 46. d4 {[%emt 0:00:19]} Kc7 {[%emt 0:00:29]} 47. Rxa3 {[%emt 0:01:04]} Rxa3 {[%emt 0:00:09]} 48. Nxa3 {[%emt 0:00:09]} Rd8 {[%emt 0:00:06]} 49. Nc2 {[%emt 0:01:43]} Bxa2 {[%emt 0:00:23]} 50. h4 {[%emt 0:03:40]} Bb1 {[%emt 0:00:50]} 51. Ne3 {[%emt 0:00:15]} Rh8 {[%emt 0:00:24]} 52. Kf2 {[%emt 0:00:30]} Rh6 {[%emt 0:00:08]} 53. Nxf5 {[%emt 0:02:50]} Bxf5 {[%emt 0:00:11]} 54. Rxf5 {[%emt 0:00:05]} Rxh4 {[%emt 0:00:03]} 55. Ke3 {[%emt 0:00:22]} Rg4 {[%emt 0:00:10]} 56. Re5 {[%emt 0:00:58]} Rxg2 {[%emt 0:00:26]} 57. Re7+ {[%emt 0:00:08]} Kd8 58. Rxf7 Rg6 {[%emt 0:00:26]} 59. Ke4 {[%emt 0:00:36]} Ke8 {[%emt 0:00:37]} 60. Re7+ {[%emt 0:00:19]} Kf8 {[%emt 0:00:15]} 61. Kf5 {[%emt 0:00:52]} Rg1 {[%emt 0:00:19]} 62. Rc7 {[%emt 0:02:57]} Rb1 {[%emt 0:00:21]} 63. Ke6 {[%emt 0:00:37]} Re1+ {[%emt 0:00:08]} 64. Kd6 {[%emt 0:00:17]} Rf1 {[%emt 0:00:21]} 65. Kxc6 {[%emt 0:00:49]} Rxf6+ {[%emt 0:00:06]} 66. Kd5 {[%emt 0:00:20]} Ke8 {[%emt 0:00:11]} 67. b5 {[%emt 0:00:17]} Kd8 {[%emt 0:00:14]} 68. Rh7 {[%emt 0:00:18]} Rg6 {[%emt 0:00:10]} 69. c6 {[%emt 0:00:24]} Kc8 {[%emt 0:00:06]} 70. b6 {[%emt 0:00:17]} Rg5+ {[%emt 0:00:04]} 71. Kc4 {[%emt 0:00:13]} Rg8 {[%emt 0:00:10]} 72. d5 {[%emt 0:00:18]} Kb8 73. Kc5 {[%emt 0:00:44]} Ka8 {[%emt 0:00:23]} 74. Ra7+ {[%emt 0:01:24]} Kb8 {[%emt 0:00:07]} 75. c7+ {[%emt 0:00:27]} 1-0

[Event "FIDE Zonal 2.5 Open 2019"]
[Site "Montevideo"]
[Date "2019.04.16"]
[Round "6.18"]
[White "Pinero, Ismael"]
[Black "Adasme Fredes, Mauricio"]
[Result "0-1"]
[ECO "B48"]
[WhiteElo "1872"]
[BlackElo "2086"]
[Annotator "NA RC"]
[PlyCount "74"]
[EventDate "2019.04.13"]
[EventType "swiss"]
[EventCountry "URU"]
[SourceTitle "playchess.com"]
[Source "ChessBase"]
[SourceQuality "1"]
[TimeControl "40/5400+30:1800+30"]

{[%evp 11,72,37,36,32767,32767,32767,18,-16,32767,-65,14,5,16,14,8,-29,32767,0,28,14,54,-41,-32,-72,-64,-81,-59,-65,-50,-46,-44,-37,-55,-52,32767,-42,-58,-77,-79,-162,32767,-167,-189,-404,-445,-399,-288,-304,-261,-258,-271,-298,-309,-333,-192,32767,-847,-4906,32767,-29972,32767,-29973,-29981]} 1. e4 {[%emt 0:00:30]} c5 {[%emt 0:00:00]} 2. Nf3 {[%emt 0:00:26]} e6 {[%emt 0:00:00]} 3. d4 {[%emt 0:00:15]} cxd4 {[%emt 0:00:00]} 4. Nxd4 {[%emt 0:00:05]} Nc6 {[%emt 0:00:00]} 5. Nc3 {[%emt 0:05:19]} Qc7 {[%emt 0:00:08]} 6. Be3 {[%emt 0:03:28]} a6 {[%emt 0:00:09]} 7. Bd3 {[%emt 0:00:25]} Nf6 {[%emt 0:00:19]} 8. O-O {[%emt 0:00:20]} b5 {[%emt 0:00:45]} 9. Re1 {[%emt 0:00:16] B48: Sicilian: Taimanov: 5 Nc3 Qc7 6 Be3 a6 without Be2} Bb7 {[%emt 0:00:43]} 10. Nd5 {[%emt 0:15:45]} ({White should try} 10. h3 $11) (10. Nxc6 Qxc6 11. Bd4 Be7 12. Qf3 d6 13. a3 O-O 14. Qg3 Rad8 15. Rad1 Nh5 16. Qf3 Nf6 {1-0 (44) Carlsen,M (2832)-Grischuk,A (2750) chess.com INT 2017}) 10... Nxd5 $146 {[%emt 0:02:32]} ({Black should play Predecessor:} 10... exd5 $17 11. exd5 Ne7 (11... Ne5 12. Bf4 d6 13. c4 bxc4 14. Qa4+ Qd7 15. Qxc4 Bxd5 16. Qb4 Be6 17. Bxe5 dxe5 {0-1 (35) Reis,N (1919)-Smit,J (2094) Bad Homburg 2009})) 11. exd5 {[%emt 0:00:16]} Nxd4 {[%emt 0:00:13]} 12. Bxd4 {[%emt 0:00:52]} Bxd5 {[%emt 0:00:01]} 13. a4 {[%emt 0:03:14]} b4 {[%emt 0:04:15]} 14. a5 {[%emt 0:01:33]} Qc6 {[%emt 0:03:54]} 15. Qg4 {[%emt 0:05:48]} h5 {[%emt 0:07:17]} 16. Qh3 {[%emt 0:10:11]} (16. Qg5 $11) 16... Bc5 {[%emt 0:03:00]} 17. c3 {[%emt 0:03:12]} Bxd4 {[%emt 0:03:25]} 18. cxd4 {[%emt 0:00:06]} Qd6 {[%emt 0:01:29]} 19. Qe3 {[%emt 0:05:18]} Kf8 {[%emt 0:05:33]} 20. Rac1 {[%emt 0:01:10]} g6 {[%emt 0:03:00]} 21. Rc5 $1 {[%emt 0:00:24]} Kg7 {[%emt 0:00:32]} 22. Rec1 {[%emt 0:00:14]} h4 {[%emt 0:01:23]} 23. h3 $1 {[%emt 0:00:33]} Rh5 {[%emt 0:01:14]} 24. f4 {[%emt 0:03:30]} b3 {[%emt 0:02:16]} 25. R1c3 {[%emt 0:01:07]} (25. Rf1 $17 {is a better defense.}) 25... Rb8 {[%emt 0:00:37]} 26. Qf2 {[%emt 0:09:42] [#]} Rb4 $1 {[%emt 0:01:04]} 27. Be2 $2 {[%emt 0:00:28]} (27. Rc1) 27... Rf5 {[%emt 0:00:26]} 28. Qxh4 {[%emt 0:01:19]} Qxf4 {[%emt 0:00:24]} 29. Qxf4 {[%emt 0:02:33]} Rxf4 {[%emt 0:00:05]} 30. Bxa6 {[%emt 0:00:47]} Rbxd4 {[%emt 0:00:08]} 31. Bd3 {[%emt 0:00:20]} Ra4 {[%emt 0:00:39]} 32. a6 {[%emt 0:01:16]} Ra2 {[%emt 0:00:28]} 33. Rc7 {[%emt 0:00:34]} Rxb2 {[%emt 0:00:33]} 34. Bf1 {[%emt 0:00:21]} Ra2 {[%emt 0:01:38]} 35. g3 {[%emt 0:04:46]} Rxf1+ {[%emt 0:00:17]} 36. Kxf1 {[%emt 0:00:08]} b2 37. Rb7 {[%emt 0:00:51]} Bxb7 {[%emt 0:00:05]} 0-1